bitfinex/quotes_SOLUSD_20241008
["timestamp","ask_amount","ask_price","bid_price","bid_amount"]
[1728404823955,17.5154,142.74,142.69,1.40130931]
[1728404824257,7.0068,142.72,142.69,1.40130931]
[1728404824855,7.0063,142.73,142.7,0.25098]
[1728404825039,7.0063,142.73,142.71,1.40108125]
[1728404825235,0.8443328,142.75,142.71,1.40108125]
[1728404825459,0.8443328,142.75,142.72,1.65183194]
[1728404825645,0.8443328,142.75,142.72,23.18043194]
[1728404825835,0.8443328,142.75,142.74,7.25668]
[1728404826231,0.8443328,142.75,142.74,0.25098]
[1728404827047,0.8443328,142.75,142.74,7.25668]
[1728404827279,0.8443328,142.75,142.74,0.25098]
[1728404831750,0.8443328,142.75,142.73,0.25098]
[1728404832045,7.8495328,142.75,142.73,0.25098]
[1728404832445,0.8443328,142.75,142.73,0.25098]
[1728404834666,0.8443328,142.75,142.72,0.25098]
[1728404835051,0.8443328,142.75,142.74,0.25098]
[1728404835568,0.8443328,142.75,142.74,1.65151836]
[1728404835862,0.8443328,142.75,142.74,0.25098]
[1728404836044,0.8443328,142.75,142.73,0.25098]
[1728404837964,0.8443328,142.75,142.73,7.25708]
[1728404838341,0.8443328,142.75,142.74,7.25668]
[1728404839174,0.8443328,142.75,142.74,8.65704521]
[1728404839668,0.8443328,142.75,142.74,7.25668]
[1728404840178,0.8443328,142.75,142.74,31.61293321]
[1728404841153,0.8443328,142.75,142.74,30.21268]
[1728404845966,0.8443328,142.75,142.74,22.956]
[1728404846265,0.8443328,142.75,142.74,29.9617]
[1728404847245,0.8443328,142.75,142.74,30.21268]
[1728404847769,0.8443328,142.75,142.74,23.20698]
[1728404848858,0.8443328,142.75,142.74,31.61318292]
[1728404851665,7.001,142.84,142.78,7.0036]
[1728404851970,16.5524,142.86,142.79,1.65098793]
[1728404852153,7.0004,142.85,142.79,8.65408793]
[1728404852348,16.5524,142.86,142.79,1.65098793]
[1728404852563,13.4679,142.88,142.82,0.25098]
[1728404852766,13.4679,142.88,142.82,1.65069633]
[1728404853077,6.999,142.88,142.82,1.65069633]
[1728404853276,6.999,142.88,142.82,8.65229633]
[1728404853462,7.8427328,142.89,142.84,0.25098]
[1728404853769,0.8443328,142.89,142.84,8.65135147]
[1728404854289,0.8443328,142.89,142.84,7.25178]
[1728404854573,6.9989,142.88,142.84,0.25098]
[1728404854774,6.9994,142.87,142.84,0.12549]
[1728404854945,6.9998,142.86,142.81,0.12549]
[1728404855147,6.9998,142.86,142.81,0.25098]
[1728404855362,6.9995,142.87,142.81,0.25098]
[1728404855571,7.0,142.86,142.81,0.25098]
[1728404855965,6.9994,142.87,142.81,0.25098]
[1728404856378,0.8443328,142.89,142.81,0.25098]
[1728404856562,6.9999,142.86,142.81,0.25098]
[1728404856966,7.0004,142.85,142.81,0.25098]
[1728404857163,7.0011,142.84,142.78,7.0034]
[1728404857370,7.0016,142.83,142.77,24.5141]
[1728404857570,0.8443328,142.89,142.77,17.51]
[1728404857770,0.8443328,142.89,142.79,17.5074]
[1728404858079,0.8443328,142.89,142.8,7.0026]
[1728404858577,7.0003,142.85,142.8,0.25098]
[1728404858776,7.0,142.86,142.8,0.25098]
[1728404858955,6.9989,142.88,142.82,0.25098]
[1728404859152,6.9989,142.88,142.83,1.39963726]
[1728404859359,6.9989,142.88,142.84,0.12549]
[1728404859572,6.9989,142.88,142.84,0.25098]
[1728404859773,7.8428328,142.89,142.84,0.25098]
[1728404859978,0.8443328,142.89,142.85,1.39955137]
[1728404860372,0.8443328,142.89,142.84,0.25098]
[1728404861383,0.8443328,142.89,142.84,7.25148]
[1728404863682,6.9991,142.88,142.85,1.39938384]
[1728404863880,6.9991,142.88,142.83,6.5321]
[1728404864180,7.8427328,142.89,142.83,13.5332]
[1728404864679,0.8443328,142.89,142.83,6.5321]
[1728404864879,0.8443328,142.89,142.85,7.25118]
[1728404865064,0.8443328,142.89,142.86,6.9998]
[1728404865260,0.8443328,142.89,142.87,0.25098]
[1728404865460,0.8443328,142.89,142.87,1.65021489]
[1728404865664,0.8443328,142.89,142.87,0.25098]
[1728404865884,0.8443328,142.89,142.86,0.25098]
[1728404866281,0.8443328,142.89,142.86,1.65026203]
[1728404866466,0.8443328,142.89,142.86,0.25098]
[1728404866670,0.8443328,142.89,142.87,0.25098]
[1728404867380,0.8443328,142.89,142.87,0.12549]
[1728404867579,0.8443328,142.89,142.86,0.25098]
[1728404867980,0.8443328,142.89,142.85,0.25098]
[1728404868565,0.8443328,142.89,142.85,7.25088]
[1728404868879,0.8443328,142.89,142.85,7.25118]
[1728404870390,0.8443328,142.89,142.85,0.25098]
[1728404870564,0.8443328,142.89,142.87,0.25098]
[1728404871394,0.8443328,142.89,142.88,31.68708868]
[1728404873074,0.8443328,142.89,142.88,30.28788]
[1728404873399,0.8443328,142.89,142.88,31.686789]
[1728404874567,0.8443328,142.89,142.88,30.28788]
[1728404874896,0.8443328,142.89,142.88,31.68675511]
[1728404876178,0.8443328,142.89,142.88,31.68675468]
[1728404878579,0.8443328,142.89,142.88,30.28788]
[1728404880691,0.8443328,142.89,142.88,30.16239]
[1728404881269,0.8443328,142.89,142.88,31.56143066]
[1728404881803,0.8443328,142.89,142.88,31.68692066]
[1728404882382,0.8443328,142.89,142.88,30.28788]
[1728404885181,0.8443328,142.89,142.86,17.4994]
[1728404885379,0.8443328,142.89,142.86,24.4989]
[1728404885701,0.8443328,142.89,142.86,87.4994]
[1728404885899,0.8443328,142.89,142.88,70.0]
[1728404886079,0.8443328,142.89,142.88,76.9988]
[1728404886589,0.8443328,142.89,142.88,77.24978]
[1728404887503,16.0356,143.01,142.88,77.24978]
[1728404887504,23.0282,143.01,142.95,6.9949]
[1728404890197,23.0282,143.01,142.94,17.61479]
[1728404890198,16.0356,143.01,142.96,7.24548]
[1728404890397,16.0356,143.01,142.96,0.25098]
[1728404890613,16.0356,143.01,142.97,6.9944]
[1728404891481,16.0356,143.01,142.98,1.3983657]
[1728404892181,6.9916,143.03,142.98,1.3983657]
[1728404892384,6.9916,143.03,142.98,8.3922657]
[1728404893111,7.8354328,143.04,142.98,8.3922657]
[1728404893905,7.8354328,143.04,142.99,6.9934]
[1728404894108,7.8354328,143.04,143.0,1.39812052]
[1728404894688,7.8354328,143.04,142.99,6.9934]
[1728404894895,7.8354328,143.04,142.98,6.9936]
[1728404895605,0.8443328,143.04,142.99,7.24428]
[1728404896603,0.8443328,143.04,143.0,6.9929]
[1728404896907,0.8443328,143.04,143.01,1.39804064]
[1728404897117,0.8443328,143.04,143.02,6.9919]
[1728404897302,0.8443328,143.04,143.03,8.38939761]
[1728404898489,0.8443328,143.04,143.03,1.39789761]
[1728404899297,0.8443328,143.04,143.03,8.64037761]
[1728404899898,0.8443328,143.04,143.03,7.24248]
[1728404900102,0.8443328,143.04,143.03,0.12549]
[1728404900313,0.8443328,143.04,143.03,6.9915]
[1728404901497,0.8443328,143.04,143.03,7.11699]
[1728404902415,0.8443328,143.04,143.02,24.4714]
[1728404903117,0.8443328,143.04,143.03,6.9915]
[1728404904108,0.8443328,143.04,143.02,24.4713]
[1728404904920,0.8443328,143.04,143.01,6.9923]
[1728404907999,0.8443328,143.04,143.0,6.9928]
[1728404908421,0.8443328,143.04,142.99,24.4763]
[1728404908623,7.8356328,143.04,142.99,17.4829]
[1728404910118,7.8356328,143.04,142.99,24.4763]
[1728404910423,6.9915,143.03,142.98,6.9939]
[1728404911796,6.9915,143.03,142.99,1.39821417]
[1728404912221,0.8443328,143.04,142.96,17.4866]
[1728404912702,6.993,143.0,142.96,17.4866]
[1728404912897,17.20698051,143.03,142.96,17.4866]
[1728404913103,6.9926,143.01,142.96,24.4814]
[1728404914101,6.992,143.02,142.97,8.3928066]
[1728404914302,15.459,143.03,142.97,8.3928066]
[1728404914509,22.4506,143.03,142.97,8.3928066]
[1728404914802,22.4506,143.03,142.94,21.3422]
[1728404914803,7.8354328,143.04,142.99,6.9931]
[1728404915101,0.8443328,143.04,142.99,6.9931]
[1728404915833,7.8355328,143.04,142.99,6.9931]
[1728404916202,0.8443328,143.04,143.01,6.9924]
[1728404916424,0.8443328,143.04,143.0,24.4749]
[1728404916829,0.8443328,143.04,143.01,1.39803854]
[1728404917016,0.8443328,143.04,143.0,24.4751]
[1728404917704,0.8443328,143.04,143.01,6.9924]
[1728404918418,0.8443328,143.04,143.02,1.3979425]
[1728404918621,0.8443328,143.04,143.01,6.9924]
[1728404918818,0.8443328,143.04,142.97,17.4853]
[1728404919125,0.8443328,143.04,143.0,6.9926]
[1728404919329,0.8443328,143.04,143.01,6.9921]
[1728404919504,0.8443328,143.04,143.02,1.39794213]
[1728404919705,0.8443328,143.04,143.01,6.9921]
[1728404919905,0.8443328,143.04,143.03,6.9915]
[1728404920125,0.8443328,143.04,143.02,8.3898476]
[1728404920631,0.8443328,143.04,143.03,6.9915]
[1728404923330,0.8443328,143.04,143.02,6.992]
[1728404925705,0.8443328,143.04,143.0,29.944]
[1728404926224,0.8443328,143.04,142.98,24.4776]
[1728404926530,6.9917,143.03,142.98,17.484]
[1728404926831,7.8355328,143.04,142.99,6.9933]
[1728404928122,6.9916,143.03,142.98,24.4778]
[1728404928319,0.8443328,143.04,142.96,30.18686525]
[1728404928516,6.9925,143.01,142.96,37.18166525]
[1728404928730,6.993,143.0,142.96,30.18686525]
[1728404928930,18.64038306,143.04,142.96,37.18176525]
[1728404928931,6.9927,143.01,142.96,37.18176525]
[1728404929618,18.64038306,143.04,142.97,8.39278397]
[1728404929619,6.9921,143.02,142.97,8.39278397]
[1728404929811,6.9921,143.02,142.97,6.9944]
[1728404930024,6.9927,143.01,142.96,37.18166525]
[1728404930827,6.9927,143.01,142.96,30.18686525]
[1728404931337,6.9927,143.01,142.96,37.18166525]
[1728404932728,6.9921,143.02,142.97,8.39279014]
[1728404933317,23.8835328,143.04,142.99,6.9931]
[1728404933617,23.8835328,143.04,143.0,1.39817692]
[1728404933808,7.8354328,143.04,143.0,1.39817692]
[1728404934012,0.8443328,143.04,143.0,1.39817692]
[1728404934408,7.8353328,143.04,143.0,1.39817692]
[1728404934632,0.8443328,143.04,143.0,1.39817692]
[1728404934812,0.8443328,143.04,143.0,8.39107692]
[1728404935138,0.8443328,143.04,143.0,1.39817692]
[1728404935638,0.8443328,143.04,143.02,6.9919]
[1728404935808,0.8443328,143.04,143.03,1.39787208]
[1728404937141,0.8443328,143.04,143.02,6.9919]
[1728404937325,0.8443328,143.04,143.01,24.4733]
[1728404937723,0.8443328,143.04,143.01,17.481]
[1728404938238,0.8443328,143.04,143.01,24.4734]
[1728404938418,0.8443328,143.04,143.02,1.39800629]
[1728404938734,0.8443328,143.04,143.02,8.38990629]
[1728404940141,0.8443328,143.04,143.03,6.9915]
[1728404941912,6.9886,143.09,143.03,6.9915]
[1728404941913,6.9868,143.13,143.08,6.989]
[1728404942375,6.9876,143.11,143.06,6.9897]
[1728404942529,6.9884,143.1,143.04,24.4673]
[1728404943038,6.9887,143.09,143.04,17.4767]
[1728404943518,6.9882,143.1,143.05,6.9902]
[1728404946433,1.74696509,143.13,143.04,17.4767]
[1728404946635,6.9879,143.11,143.06,6.99]
[1728404948925,6.9881,143.1,143.05,6.9905]
[1728404953049,1.74684111,143.13,143.02,22.0157]
[1728404953050,1.87233111,143.13,143.02,22.0157]
[1728404953229,6.9909,143.05,143.02,22.0157]
[1728404953546,1.74744574,143.09,143.0,14.24283784]
[1728404953848,1.74744574,143.09,142.98,40.23550127]
[1728404953849,15.3721,143.07,142.98,47.22910127]
[1728404954046,1.74769155,143.06,142.98,47.22910127]
[1728404954447,6.9919,143.03,142.98,22.75170127]
[1728404954633,6.992,143.02,142.98,22.75170127]
[1728404955258,6.9902,143.06,143.01,6.9924]
[1728404955465,7.9112231,143.1,143.02,1.39794766]
[1728404955630,6.9889,143.09,143.02,1.39794766]
[1728404956036,6.989,143.08,143.03,17.4785]
[1728404956238,6.989,143.08,143.03,24.4698]
[1728404956635,17.11925214,143.11,143.03,17.4785]
[1728404956636,1.74716879,143.11,143.03,17.4785]
[1728404956929,6.9886,143.09,143.04,6.9907]
[1728404958452,6.9883,143.1,143.05,6.9904]
[1728404958646,6.1638,143.14,143.05,6.9904]
[1728404958647,6.9877,143.11,143.06,8.38746974]
[1728404958835,6.9877,143.11,143.06,6.9899]
[1728404960257,6.9877,143.11,143.05,46.0118]
[1728404960439,6.9883,143.1,143.05,39.0214]
[1728404960642,6.9886,143.09,143.05,21.5454]
[1728404961733,1.74706712,143.12,143.02,17.4791]
[1728404961962,17.59479,143.11,143.02,17.4791]
[1728404962141,6.9899,143.07,143.02,17.4791]
[1728404963441,6.9901,143.06,143.02,17.4791]
[1728404964937,1.74734052,143.1,143.02,17.4791]
[1728404965160,6.9896,143.07,143.02,24.471]
[1728404966845,17.59479,143.11,143.03,1.39789132]
[1728404966846,17.4693,143.11,143.03,1.39789132]
[1728404967049,6.9891,143.08,143.03,6.9914]
[1728404970346,6.9887,143.09,143.04,24.4684]
[1728404970744,1.74710173,143.11,143.04,17.4775]
[1728404970949,6.9882,143.1,143.06,17.475]
[1728404971142,1.74711757,143.13,143.04,6.9907]
[1728404971143,6.9887,143.09,143.04,6.9907]
[1728404971957,6.989,143.08,143.04,6.9907]
[1728404972665,6.9887,143.09,143.04,6.9907]
[1728404977864,6.9887,143.09,143.03,17.4778]
[1728404978075,6.9883,143.1,143.05,6.9904]
[1728404979464,19.21391757,143.13,143.05,6.9904]
[1728404979671,6.9886,143.09,143.05,6.9904]
[1728404980468,6.9893,143.08,143.03,17.4778]
[1728404980672,6.9901,143.06,143.02,6.9919]
[1728404980877,6.9897,143.07,143.0,22.71534076]
[1728404981170,6.9892,143.08,143.03,6.9915]
[1728404981543,6.9886,143.09,143.04,6.9906]
[1728404981749,6.9884,143.1,143.05,1.39767607]
[1728404982050,25.37749509,143.14,143.05,17.476]
[1728404982263,6.9881,143.1,143.06,1.39750626]
[1728404983273,6.9881,143.1,143.06,8.38740626]
[1728404983572,32.66559509,143.16,143.06,8.38740626]
[1728404983783,0.49589876,143.15,143.06,8.38740626]
[1728404984576,6.9878,143.11,143.06,8.38740626]
[1728404984766,6.9878,143.11,143.06,6.9899]
[1728404985783,6.9878,143.11,143.07,1.39751725]
[1728404986373,0.49589876,143.13,143.07,1.39751725]
[1728404986581,6.9881,143.1,143.07,1.39751725]
[1728404988482,0.49589876,143.13,143.07,1.39751725]
[1728404988483,6.9874,143.12,143.07,8.38691725]
[1728404988974,6.9877,143.11,143.07,8.38691725]
[1728404989985,6.9877,143.11,143.07,6.9894]
[1728404991161,0.49589876,143.13,143.06,22.0096]
[1728404991361,6.9889,143.09,143.06,22.0096]
[1728404991557,0.49589876,143.13,143.06,22.0096]
[1728404991775,6.9891,143.08,143.06,6.542]
[1728404992589,0.49589876,143.11,143.03,15.4676]
[1728404992590,6.9895,143.07,143.03,21.9437]
[1728404993182,6.9895,143.07,143.03,28.9351]
[1728404993387,6.99,143.07,143.03,21.9437]
[1728404993576,0.49589876,143.09,143.03,21.9437]
[1728404993777,0.49589876,143.09,143.02,1.20619161]
[1728404994374,6.9906,143.05,143.02,1.20619161]
[1728404995270,0.49589876,143.09,143.03,1.39808154]
[1728404995469,6.9901,143.06,143.03,1.39808154]
[1728404997890,17.4703,143.1,143.03,8.38958154]
[1728404998187,6.9896,143.07,143.03,6.9915]
[1728404998691,6.99,143.06,143.01,24.4731]
[1728404999385,6.9911,143.04,143.0,6.9928]
[1728404999586,6.9907,143.05,143.0,6.9928]
[1728405000188,17.473,143.08,142.99,6.4761]
[1728405000189,6.9912,143.04,142.99,13.4694]
[1728405000394,17.4753,143.06,142.99,6.4761]
[1728405000571,6.05479876,143.07,142.96,6.2401]
[1728405000572,0.49589876,143.05,142.96,6.2401]
[1728405000772,6.9939,142.99,142.96,6.2401]
[1728405000984,17.4804,143.02,142.97,1.39863246]
[1728405001188,0.12549,143.06,142.97,1.39863246]
[1728405001189,6.9926,143.01,142.97,1.39863246]
[1728405001490,6.9921,143.02,142.97,1.39863246]
[1728405001693,6.9921,143.02,142.98,6.9939]
[1728405001890,6.9925,143.01,142.97,6.9943]
[1728405002092,6.9925,143.01,142.96,30.7221]
[1728405002491,17.477,143.05,142.96,23.7272]
[1728405002791,0.49589876,143.06,142.99,6.9933]
[1728405002991,0.49589876,143.06,142.98,17.4846]
[1728405002992,6.9911,143.04,143.0,8.39110524]
[1728405003198,0.49589876,143.07,143.01,6.9924]
[1728405003402,6.9901,143.06,143.02,1.398025]
[1728405003700,0.49589876,143.09,143.02,6.9915]
[1728405004181,6.9894,143.08,143.03,6.9915]
[1728405004388,6.9894,143.08,143.04,1.39787951]
[1728405005974,6.9894,143.08,143.03,6.9915]
[1728405006310,6.9894,143.08,143.04,1.39784381]
[1728405006873,6.9894,143.08,143.02,24.079]
[1728405007075,6.9894,143.08,143.04,6.991]
[1728405007274,6.9895,143.07,143.03,6.9914]
[1728405007795,0.49589876,143.1,143.02,6.5995]
[1728405007972,0.49589876,143.1,143.0,16.6221]
[1728405007973,0.49589876,143.09,143.0,16.6221]
[1728405008175,6.9924,143.02,143.0,16.6221]
[1728405008377,6.9924,143.02,142.99,6.4263]
[1728405008598,17.4741,143.07,142.99,6.4263]
[1728405008772,6.9921,143.02,142.99,6.4263]
[1728405009177,6.9929,143.01,142.99,6.4263]
[1728405009395,6.992,143.02,142.99,6.4263]
[1728405009607,6.9916,143.03,142.99,6.4263]
[1728405010276,6.9933,143.0,142.96,33.3911]
[1728405010477,6.9938,142.99,142.96,15.9048]
[1728405010790,6.9926,143.01,142.97,1.39870124]
[1728405011300,6.993,143.0,142.97,1.39870124]
[1728405012103,6.9939,142.98,142.95,6.1755]
[1728405012394,0.49589876,143.02,142.95,6.1755]
[1728405012603,6.9945,142.97,142.95,6.1755]
[1728405012805,6.9945,142.97,142.92,40.9047]
[1728405013099,6.9951,142.96,142.92,33.9079]
[1728405013396,6.9955,142.95,142.92,16.4164]
[1728405013799,6.9951,142.96,142.93,1.39902852]
[1728405014496,6.9951,142.96,142.92,16.4164]
[1728405014682,17.4841,142.99,142.92,23.4132]
[1728405014889,6.9946,142.97,142.92,23.4132]
[1728405015084,6.9952,142.96,142.92,16.4164]
[1728405015298,0.49589876,142.98,142.92,16.4164]
[1728405015497,6.9955,142.95,142.92,16.4164]
[1728405016582,0.49589876,142.98,142.92,16.4164]
[1728405016788,6.9959,142.94,142.92,16.4164]
[1728405017086,6.9964,142.93,142.91,6.4735]
[1728405017291,6.996,142.94,142.9,8.39699211]
[1728405017480,6.9958,142.95,142.9,8.39699211]
[1728405018385,0.49589876,142.96,142.89,23.1684]
[1728405018592,6.9967,142.93,142.89,16.1702]
[1728405019005,6.9967,142.93,142.9,1.39922049]
[1728405019182,6.9967,142.93,142.89,16.1702]
[1728405019711,6.9978,142.91,142.87,6.4607]
[1728405019910,17.4889,142.95,142.87,6.4607]
[1728405020203,6.9975,142.91,142.87,6.4607]
[1728405020379,6.9975,142.91,142.87,13.46]
[1728405021617,6.9975,142.91,142.87,6.4607]
[1728405022811,6.998,142.9,142.87,6.4607]
[1728405024716,6.9975,142.91,142.87,14.85959131]
[1728405025022,6.9984,142.89,142.87,6.4607]
[1728405026416,6.9984,142.89,142.86,15.8496]
[1728405027004,0.49589876,142.88,142.83,13.7707481]
[1728405027299,6.999,142.88,142.84,1.39989226]
[1728405027504,6.999,142.88,142.83,20.7716481]
[1728405028015,6.9988,142.88,142.84,8.4005218]
[1728405029323,40.5428,142.93,142.84,1.3998218]
[1728405029324,0.49589876,142.92,142.84,1.3998218]
[1728405029521,0.49589876,142.92,142.84,0.25098]
[1728405029522,6.9977,142.91,142.84,0.25098]
[1728405029817,6.9979,142.9,142.86,24.499]
[1728405030521,0.49589876,142.93,142.86,17.4993]
[1728405030722,0.49589876,142.93,142.83,13.8962381]
[1728405030723,0.49589876,142.93,142.84,0.25098]
[1728405030919,0.49589876,142.95,142.85,0.12549]
[1728405031125,6.9974,142.91,142.87,6.9992]
[1728405031307,0.49589876,142.95,142.88,17.67805141]
[1728405031506,6.9969,142.93,142.89,6.9983]
[1728405032027,0.49589876,142.95,142.88,16.2786]
[1728405032206,5.5589,142.96,142.9,7.99125875]
[1728405032207,0.49589876,142.96,142.9,7.99125875]
[1728405032522,5.5589,143.0,142.91,17.4929]
[1728405032523,6.996,142.94,142.91,17.4929]
[1728405032822,6.996,142.94,142.91,18.89212237]
[1728405033820,6.996,142.94,142.91,1.39922237]
[1728405035527,6.9957,142.95,142.91,8.39662237]
[1728405035829,0.49589876,142.97,142.91,1.39922237]
[1728405036000,5.5589,143.0,142.91,1.39922237]
[1728405036001,0.49589876,142.98,142.92,17.492]
[1728405036200,6.9962,142.94,142.9,13.5897]
[1728405036808,6.9955,142.95,142.91,8.39645688]
[1728405038003,6.9955,142.95,142.91,6.9973]
[1728405038502,7.49069876,142.97,142.91,17.4925]
[1728405038824,0.49589876,142.99,142.95,6.9951]
[1728405039028,6.9935,142.99,142.96,1.39885443]
[1728405039410,6.9941,142.98,142.94,22.8764]
[1728405039802,6.9936,142.99,142.95,6.995]
[1728405040702,6.9936,142.99,142.96,1.39876132]
[1728405041329,5.5589,143.04,142.96,1.39876132]
[1728405041536,6.993,143.0,142.96,6.9948]
[1728405042030,6.9925,143.01,142.97,6.9944]
[1728405042529,6.9925,143.01,142.96,6.5424]
[1728405042530,6.9925,143.01,142.96,13.5372]
[1728405042913,6.9932,143.0,142.96,13.5372]
[1728405043330,0.49589876,142.99,142.94,15.8807]
[1728405043515,6.9943,142.98,142.94,22.8764]
[1728405043828,6.9936,142.99,142.94,22.8764]
[1728405044933,0.49589876,143.0,142.94,22.8764]
[1728405044934,6.994,142.98,142.94,22.8764]
[1728405045136,0.49589876,143.0,142.94,15.8807]
[1728405046021,6.9949,142.96,142.94,15.8807]
[1728405051429,6.996,142.94,142.92,6.5288]
[1728405051638,0.49589876,142.98,142.92,6.5288]
[1728405051935,6.9956,142.95,142.92,6.5288]
[1728405053444,0.49589876,142.98,142.9,15.2026]
[1728405053445,17.4864,142.97,142.9,15.2026]
[1728405053744,17.4887,142.95,142.89,6.4203]
[1728405053935,0.49589876,142.94,142.89,6.4203]
[1728405054122,0.49589876,142.94,142.87,16.3047]
[1728405054325,6.9979,142.9,142.87,16.3047]
[1728405054635,6.9976,142.91,142.87,23.304]
[1728405054829,6.9979,142.9,142.87,16.3047]
[1728405055017,6.9977,142.91,142.87,23.304]
[1728405055213,0.49589876,142.94,142.87,23.304]
[1728405055214,0.49589876,142.94,142.88,18.89620039]
[1728405055418,6.9973,142.92,142.88,24.4954]
[1728405055725,6.9974,142.91,142.88,17.4967]
[1728405056324,0.12549,142.95,142.87,16.3047]
[1728405056540,0.12549,142.93,142.87,16.3047]
[1728405056741,6.9988,142.89,142.87,16.3047]
[1728405056942,0.49589876,142.92,142.87,16.3047]
[1728405056943,6.998,142.9,142.87,16.3047]
[1728405057442,6.998,142.9,142.87,17.70432755]
[1728405058326,6.998,142.9,142.87,16.3047]
[1728405059234,6.9984,142.89,142.87,16.3047]
[1728405061037,6.998,142.9,142.87,17.70434187]
[1728405061931,6.9973,142.92,142.87,24.70334187]
[1728405062241,6.9973,142.92,142.88,6.9988]
[1728405062556,0.49589876,142.93,142.9,6.9978]
[1728405062557,6.9966,142.93,142.9,6.9978]
[1728405062726,0.49589876,142.97,142.91,1.39934436]
[1728405062929,17.97929876,143.0,142.91,17.4933]
[1728405063138,17.97929876,143.0,142.92,1.39908026]
[1728405063343,17.97929876,143.0,142.92,7.81038026]
[1728405063541,6.9948,142.97,142.93,6.9964]
[1728405063847,7.48949876,142.99,142.95,6.9954]
[1728405064032,6.9941,142.98,142.94,6.9957]
[1728405069551,0.49589876,143.02,142.95,1.39884013]
[1728405069735,6.9916,143.03,142.99,6.9931]
[1728405069933,6.9916,143.03,143.0,1.39838898]
[1728405070158,0.49589876,143.05,143.01,24.4726]
[1728405070455,0.49589876,143.08,143.01,24.4726]
[1728405070857,6.9908,143.05,143.01,24.4726]
[1728405072030,6.9908,143.05,143.01,17.4803]
[1728405072254,6.9911,143.04,143.01,17.4803]
[1728405072565,6.9921,143.02,142.99,15.45]
[1728405072743,6.9934,142.99,142.98,6.4355]
[1728405073052,6.995,142.96,142.94,6.2089]
[1728405073238,6.9935,142.99,142.95,6.9953]
[1728405073633,0.49589876,143.01,142.94,6.2089]
[1728405073634,6.994,142.98,142.94,30.6942]
[1728405073844,6.9945,142.97,142.94,23.6983]
[1728405074056,6.9945,142.97,142.94,6.2089]
[1728405075242,6.9945,142.97,142.94,7.60788315]
[1728405075853,6.9945,142.97,142.94,6.2089]
[1728405076159,6.995,142.96,142.94,6.2089]
[1728405077640,6.9946,142.97,142.94,6.2089]
[1728405078141,6.9959,142.94,142.91,33.4515]
[1728405078344,0.49589876,142.93,142.91,15.9589]
[1728405078643,0.49589876,142.93,142.9,6.0682]
[1728405078644,0.12549,142.99,142.9,6.0682]
[1728405078845,34.9644,143.01,142.87,21.7631]
[1728405078846,6.9984,142.89,142.87,21.7631]
[1728405080440,0.49589876,142.93,142.87,21.7631]
[1728405080638,6.9978,142.91,142.87,21.7631]
[1728405080835,6.9982,142.9,142.87,21.7631]
[1728405082463,0.49589876,142.89,142.87,21.7631]
[1728405082658,6.9993,142.87,142.83,31.11681473]
[1728405083065,0.49589876,142.91,142.83,22.9047]
[1728405083266,7.0004,142.85,142.83,22.9047]
[1728405083566,17.62059,142.9,142.83,29.9058]
[1728405083765,0.49589876,142.89,142.84,1.39992777]
[1728405083964,6.9993,142.88,142.83,29.9058]
[1728405084265,6.9995,142.87,142.83,29.9058]
[1728405084463,7.49459876,142.89,142.84,1.39995701]
[1728405084644,7.49459876,142.89,142.84,7.0008]
[1728405084645,6.9989,142.88,142.84,7.0008]
[1728405084841,0.49589876,142.92,142.84,1.39985999]
[1728405085041,0.49589876,142.92,142.85,7.0002]
[1728405085042,6.9985,142.89,142.85,7.0002]
[1728405085964,0.49589876,142.92,142.86,6.9998]
[1728405086165,0.49589876,142.92,142.87,1.39967243]
[1728405086367,0.49589876,142.92,142.88,6.9987]
[1728405086368,7.49299876,142.92,142.88,6.9987]
[1728405086668,7.49299876,142.92,142.87,8.39887243]
[1728405086669,6.9971,142.92,142.87,8.39887243]
[1728405086864,6.9975,142.91,142.87,8.39887243]
[1728405087760,6.9975,142.91,142.87,6.9992]
[1728405088169,0.49589876,142.94,142.86,17.4991]
[1728405088465,6.998,142.9,142.86,24.4988]